fUSD/lending_fUSD_20250911
["ID","MTS","AMOUNT","RATE_DAILY","PERIOD"]
[384956837,1757633531034,-2326.81,0.00028767,7]
[384956838,1757633531044,-3357.08,0.00028767,7]
[384956839,1757633531053,-1539.49,0.00028767,7]
[384956840,1757633531063,-407.4,0.00028767,7]
[384956841,1757633531077,-1135.17,0.00028767,7]
[384956842,1757633531086,-1001.4,0.00028767,7]
[384956843,1757633531096,-4286.71,0.00028767,7]
[384956844,1757633531106,-400.0,0.00028767,7]
[384956845,1757633531116,-400.0,0.00028767,7]
[384956846,1757633531126,-1178.15,0.00028767,7]
[384956847,1757633531137,-4759.47,0.00028767,7]
[384956848,1757633531147,-1137.02,0.00028767,7]
[384956849,1757633531158,-1095.27,0.00028767,7]
[384956850,1757633531168,-681.95,0.00028767,7]
[384956851,1757633531178,-1249.41,0.00028767,7]
[384956852,1757633531188,-4804.05,0.00028767,7]
[384956853,1757633531198,-923.45,0.00028767,7]
[384956854,1757633531208,-712.85,0.00028767,7]
[384956855,1757633531218,-1384.54,0.00028767,7]
[384956856,1757633531228,-2383.73,0.00028767,7]
[384956857,1757633531239,-1385.16,0.00028767,7]
[384956858,1757633531249,-5278.59,0.00028767,7]
[384956859,1757633531259,-1440.73,0.00028767,7]
[384956860,1757633531268,-909.93,0.00028767,7]
[384956861,1757633531278,-1917.55,0.00028767,7]
[384956862,1757633531289,-943.46,0.00028767,7]
[384956863,1757633531299,-400.0,0.00028767,7]
[384956864,1757633531310,-1768.75,0.00028767,7]
[384956865,1757633531320,-400.0,0.00028767,7]
[384956866,1757633531330,-1850.78,0.00028767,7]
[384956867,1757633531340,-400.0,0.00028767,7]
[384956868,1757633531350,-1414.65,0.00028767,7]
[384956869,1757633531360,-2522.98,0.00028767,7]
[384956870,1757633531370,-8915.5,0.00028767,7]
[384956871,1757633531380,-2293.05,0.00028767,7]
[384956872,1757633531390,-1506.19,0.00028767,7]
[384956873,1757633531400,-646.55,0.00028767,7]
[384956874,1757633531410,-1115.97,0.00028767,7]
[384956875,1757633531420,-1228.55,0.00028767,7]
[384956876,1757633531430,-400.0,0.00028767,7]
[384956877,1757633531440,-822.61,0.00028767,7]
[384956878,1757633531450,-2894.96,0.00028767,7]
[384956879,1757633531459,-400.0,0.00028767,7]
[384956880,1757633531469,-400.0,0.00028767,7]
[384956881,1757633531480,-1099.92,0.00028767,7]
[384956882,1757633531490,-1192.58,0.00028767,7]
[384956883,1757633531501,-1669.73,0.00028767,7]
[384956884,1757633531511,-1361.61,0.00028767,7]
[384956885,1757633531521,-1391.18,0.00028767,7]
[384956886,1757633531531,-400.0,0.00028767,7]
[384956887,1757633531541,-487.65,0.00028767,7]
[384956888,1757633531551,-1005.66,0.00028767,7]
[384956889,1757633531561,-400.0,0.00028767,7]
[384956890,1757633531572,-788.43,0.00028767,7]
[384956891,1757633531581,-4228.2,0.00028767,7]
[384956892,1757633531591,-1287.44,0.00028767,7]
[384956893,1757633531602,-581.85,0.00028767,7]
[384956894,1757633531612,-400.0,0.00028767,7]
[384956895,1757633531623,-632.0,0.00028767,7]
[384956896,1757633531633,-400.0,0.00028767,7]
[384956897,1757633531644,-492.57,0.00028767,7]
[384956898,1757633531653,-400.0,0.00028767,7]
[384956899,1757633531663,-674.36,0.00028767,7]
[384956900,1757633531673,-400.0,0.00028767,7]
[384956901,1757633531683,-1523.77,0.00028767,7]
[384956902,1757633531692,-3392.45,0.00028767,7]
[384956903,1757633531702,-788.79,0.00028767,7]
[384956904,1757633531712,-400.0,0.00028767,7]
[384956905,1757633531722,-693.52,0.00028767,7]
[384956906,1757633531732,-633.62,0.00028767,7]
[384956907,1757633531743,-571.68,0.00028767,7]
[384956908,1757633531752,-400.0,0.00028767,7]
[384956909,1757633531762,-3716.07,0.00028767,7]
[384956910,1757633531772,-400.0,0.00028767,7]
[384956911,1757633531782,-2442.24,0.00028767,7]
[384956912,1757633531792,-993.53,0.00028767,7]
[384956913,1757633531802,-1414.86,0.00028767,7]
[384956914,1757633531811,-492.14,0.00028767,7]
[384956915,1757633531821,-1644.51,0.00028767,7]
[384956916,1757633531832,-1049.17,0.00028767,7]
[384956917,1757633531843,-730.7,0.00028767,7]
[384956918,1757633531853,-625.87,0.00028767,7]
[384956919,1757633531864,-3663.04,0.00028767,7]
[384956920,1757633531874,-444.87,0.00028767,7]
[384956921,1757633531885,-591.04,0.00028767,7]
[384956922,1757633531895,-1449.18,0.00028767,7]
[384956923,1757633531906,-3224.91,0.00028767,7]
[384956924,1757633531917,-1564.29,0.00028767,7]
[384956925,1757633531927,-1008.68,0.00028767,7]
[384956926,1757633531936,-1052.95,0.00028767,7]
[384956927,1757633531951,-400.0,0.00028767,7]
[384956928,1757633531961,-669.52,0.00028767,7]
[384956929,1757633531971,-1219.73,0.00028767,7]
[384956930,1757633531981,-990.64,0.00028767,7]
[384956931,1757633531991,-436.74,0.00028767,7]
[384956932,1757633532000,-400.0,0.00028767,7]
[384956933,1757633532010,-464.91,0.00028767,7]
[384956934,1757633532022,-4257.44,0.00028767,7]
[384956935,1757633532032,-400.0,0.00028767,7]
[384956936,1757633532042,-400.0,0.00028767,7]
[384956937,1757633532052,-1555.95,0.00028767,7]
[384956938,1757633532062,-1593.33,0.00028767,7]
[384956939,1757633532071,-1898.89,0.00028767,7]
[384956940,1757633532081,-482.11,0.00028767,7]
[384956941,1757633532091,-424.44,0.00028767,7]
[384956942,1757633532101,-419.72,0.00028767,7]
[384956943,1757633532111,-1306.76,0.00028767,7]
[384956944,1757633532120,-400.0,0.00028767,7]
[384956945,1757633532130,-400.0,0.00028767,7]
[384956946,1757633532140,-400.0,0.00028767,7]
[384956947,1757633532150,-400.0,0.00028767,7]
[384956948,1757633532160,-190.11,0.00028768,30]
[384956949,1757633532172,-782.35624153,0.00028768,5]
[384956950,1757633532182,-1000.0,0.00028768,5]
[384956951,1757633532191,-1500.0,0.00028768,5]
[384956952,1757633532200,-500.0,0.00028768,5]
[384956953,1757633532211,-1500.0,0.00028768,5]
[384956954,1757633532221,-502.39027523,0.00028768,5]
[384956955,1757633532231,-200.0,0.00028768,5]
[384956956,1757633532241,-1500.0,0.00028768,5]
[384956957,1757633532251,-500.0,0.00028768,5]
[384956958,1757633532260,-1001.50626669,0.00028768,5]
[384956959,1757633532270,-1500.0,0.00028768,5]
[384956960,1757633532280,-604.12712904,0.00028768,5]
[384956961,1757633532290,-500.0,0.00028768,5]
[384956962,1757633532300,-500.0,0.00028768,5]
[384956963,1757633532310,-501.95293294,0.00028768,5]
[384956964,1757633532320,-152.58558665,0.0002879,2]
[384956965,1757633532330,-5321.46,0.000288,2]
[384956966,1757633532339,-168.0,0.00028804,2]
[384956967,1757633532349,-167.43,0.00028817,2]
[384956968,1757633532359,-252.4163165,0.00028899,2]
[384956969,1757633532368,-547.0,0.00028949,3]
[384956970,1757633532377,-152.0,0.00028949,3]
[384956971,1757633532387,-1225.0,0.00028949,3]
[384956972,1757633532396,-152.0,0.00028949,3]
[384956973,1757633532406,-1225.0,0.00028949,3]
[384956974,1757633532416,-547.0,0.00028949,3]
[384956975,1757633532425,-152.0,0.00028949,3]
[384956976,1757633532435,-1225.0,0.00028949,3]
[384956977,1757633532444,-547.0,0.00028949,3]
[384956978,1757633532453,-152.0,0.00028949,3]
[384956979,1757633532463,-1225.0,0.00028949,3]
[384956980,1757633532473,-152.0,0.00028949,3]
[384956981,1757633532483,-547.0,0.00028949,3]
[384956982,1757633532494,-152.0,0.00028949,3]
[384956983,1757633532506,-152.0,0.00028949,3]
[384956984,1757633532517,-1225.0,0.00028949,3]
[384956985,1757633532526,-547.0,0.00028949,3]
[384956986,1757633532536,-1225.0,0.00028949,3]
[384956987,1757633532546,-152.0,0.00028949,3]
[384956988,1757633532555,-547.0,0.00028949,3]
[384956989,1757633532566,-1225.0,0.00028949,3]
[384956990,1757633532576,-152.0,0.00028949,3]
[384956991,1757633532586,-547.0,0.00028949,3]
[384956992,1757633532595,-1225.0,0.00028949,3]
[384956993,1757633532606,-547.0,0.00028949,3]
[384956994,1757633532615,-152.0,0.00028949,3]
[384956995,1757633532625,-1225.0,0.00028949,3]
[384956996,1757633532635,-547.0,0.00028949,3]
[384956997,1757633532644,-152.0,0.00028949,3]
[384956998,1757633532654,-152.0,0.00028949,3]
[384956999,1757633532664,-152.0,0.00028949,3]
[384957000,1757633532673,-547.0,0.00028949,3]
[384957001,1757633532683,-547.0,0.00028949,3]
[384957002,1757633532693,-547.0,0.00028949,3]
[384957003,1757633532702,-152.0,0.00028949,3]
[384957004,1757633532712,-1225.0,0.00028949,3]
[384957005,1757633532722,-547.0,0.00028949,3]
[384957006,1757633532731,-152.0,0.00028949,3]
[384957007,1757633532741,-1225.0,0.00028949,3]
[384957008,1757633532751,-152.0,0.00028949,3]
[384957009,1757633532761,-547.0,0.00028949,3]
[384957010,1757633532770,-152.0,0.00028949,3]
[384957011,1757633532780,-1225.0,0.00028949,3]
[384957012,1757633532789,-547.0,0.00028949,3]
[384957013,1757633532799,-152.0,0.00028949,3]
[384957014,1757633532809,-1225.0,0.00028949,3]
[384957015,1757633532819,-154.0,0.00028949,3]
[384957016,1757633532829,-1225.0,0.00028949,3]
[384957017,1757633532839,-1225.0,0.00028949,3]
[384957018,1757633532849,-547.0,0.00028949,3]
[384957019,1757633532858,-152.0,0.00028949,3]
[384957020,1757633532868,-152.0,0.00028949,3]
[384957021,1757633532878,-152.27191692,0.00028949,3]
[384957022,1757633532887,-547.0,0.00028949,3]
[384957023,1757633532898,-547.0,0.00028949,3]
[384957024,1757633532907,-547.0,0.00028949,3]
[384957025,1757633532918,-547.0,0.00028949,3]
[384957026,1757633532928,-152.0,0.00028949,3]
[384957027,1757633532940,-547.0,0.00028949,3]
[384957028,1757633532952,-152.0,0.00028949,3]
[384957029,1757633532963,-152.0,0.00028949,3]
[384957030,1757633532973,-1225.0,0.00028949,3]
[384957031,1757633532983,-547.0,0.00028949,3]
[384957032,1757633532993,-152.0,0.00028949,3]
[384957033,1757633533002,-152.0,0.00028949,3]
[384957034,1757633533012,-1225.0,0.00028949,3]
[384957035,1757633533022,-547.0,0.00028949,3]
[384957036,1757633533032,-152.0,0.00028949,3]
[384957037,1757633533042,-152.0,0.00028949,3]
[384957038,1757633533051,-1225.0,0.00028949,3]
[384957039,1757633533061,-547.0,0.00028949,3]
[384957040,1757633533072,-152.0,0.00028949,3]
[384957041,1757633533082,-646.56948654,0.00028949,3]
[384957042,1757633533091,-1225.0,0.00028949,3]
[384957043,1757633533101,-152.0,0.00028949,3]
[384957044,1757633533110,-152.0,0.00028949,3]
[384957045,1757633533120,-1225.0,0.00028949,3]
[384957046,1757633533129,-152.0,0.00028949,3]
[384957047,1757633533140,-216.52623667,0.00028949,3]
[384957048,1757633533151,-1225.0,0.00028949,3]
[384957049,1757633533162,-1225.0,0.00028949,3]
[384957050,1757633533172,-152.0,0.00028949,3]
[384957051,1757633533181,-1225.0,0.00028949,3]
[384957052,1757633533190,-152.0,0.00028949,3]
[384957053,1757633533200,-1225.0,0.00028949,3]
[384957054,1757633533209,-152.0,0.00028949,3]
[384957055,1757633533220,-1225.0,0.00028949,3]
[384957056,1757633533229,-1225.0,0.00028949,3]
[384957057,1757633533239,-152.0,0.00028949,3]
[384957058,1757633533250,-152.0,0.00028949,3]
[384957059,1757633533260,-1225.0,0.00028949,3]
[384957060,1757633533270,-152.0,0.00028949,3]
[384957061,1757633533280,-1225.0,0.00028949,3]
[384957062,1757633533289,-152.0,0.00028949,3]
[384957063,1757633533299,-388.8430118,0.00028949,3]
[384957064,1757633533310,-152.0,0.00028949,3]
[384957065,1757633533320,-152.0,0.00028949,3]
[384957066,1757633533329,-152.0,0.00028949,3]
[384957067,1757633533339,-263.90646673,0.00028949,3]
[384957068,1757633533348,-152.0,0.00028949,3]
[384957069,1757633533358,-547.0,0.00028949,3]
[384957070,1757633533367,-152.0,0.00028949,3]
[384957072,1757633533484,-152.0,0.00028949,3]
[384957073,1757633533494,-152.0,0.00028949,3]
[384957074,1757633533503,-152.0,0.00028949,3]
[384957075,1757633533512,-152.0,0.00028949,3]
[384957076,1757633533522,-547.0,0.00028949,3]
[384957077,1757633533531,-547.0,0.00028949,3]
[384957078,1757633533540,-152.0,0.00028949,3]
[384957079,1757633533549,-547.0,0.00028949,3]
[384957080,1757633533559,-1225.0,0.00028949,3]
[384957081,1757633533568,-152.0,0.00028949,3]
[384957082,1757633533577,-547.0,0.00028949,3]
[384957083,1757633533587,-152.0,0.00028949,3]
[384957084,1757633533597,-1225.0,0.00028949,3]
[384957085,1757633533606,-547.0,0.00028949,3]
[384957086,1757633533615,-152.0,0.00028949,3]
[384957087,1757633533626,-1225.0,0.00028949,3]
[384957088,1757633533636,-547.0,0.00028949,3]
[384957089,1757633533645,-152.0,0.00028949,3]
[384957090,1757633533654,-547.0,0.00028949,3]
[384957091,1757633533665,-1225.0,0.00028949,3]
[384957092,1757633533674,-152.0,0.00028949,3]
[384957093,1757633533683,-547.0,0.00028949,3]
[384957094,1757633533692,-1225.0,0.00028949,3]
[384957095,1757633533701,-152.0,0.00028949,3]
[384957096,1757633533711,-547.0,0.00028949,3]
[384957097,1757633533721,-1225.0,0.00028949,3]
[384957098,1757633533730,-547.0,0.00028949,3]
[384957099,1757633533739,-1225.0,0.00028949,3]
[384957100,1757633533749,-547.0,0.00028949,3]
[384957101,1757633533759,-1225.0,0.00028949,3]
[384957102,1757633533768,-547.0,0.00028949,3]
[384957103,1757633533777,-1225.0,0.00028949,3]
[384957104,1757633533786,-547.0,0.00028949,3]
[384957105,1757633533796,-152.0,0.00028949,3]
[384957106,1757633533806,-152.0,0.00028949,3]
[384957107,1757633533815,-152.0,0.00028949,3]
[384957108,1757633533825,-152.0,0.00028949,3]
[384957109,1757633533834,-152.0,0.00028949,3]
[384957110,1757633533844,-1225.0,0.00028949,3]
[384957111,1757633533854,-152.0,0.00028949,3]
[384957112,1757633533864,-154.0,0.00028949,3]
[384957113,1757633533874,-547.0,0.00028949,3]
[384957114,1757633533884,-152.0,0.00028949,3]
[384957115,1757633533893,-154.0,0.00028949,3]
[384957116,1757633533902,-547.0,0.00028949,3]
[384957117,1757633533911,-152.0,0.00028949,3]
[384957118,1757633533921,-154.0,0.00028949,3]
[384957119,1757633533931,-547.0,0.00028949,3]
[384957120,1757633533943,-154.0,0.00028949,3]
[384957121,1757633533956,-547.0,0.00028949,3]
[384957122,1757633533966,-154.0,0.00028949,3]
[384957123,1757633533975,-547.0,0.00028949,3]
[384957124,1757633533985,-547.0,0.00028949,3]
[384957125,1757633533996,-1225.0,0.00028949,3]
[384957126,1757633534005,-547.0,0.00028949,3]
[384957127,1757633534015,-547.0,0.00028949,3]
[384957128,1757633534024,-1225.0,0.00028949,3]
[384957129,1757633534034,-547.0,0.00028949,3]
[384957130,1757633534043,-1225.0,0.00028949,3]
[384957131,1757633534052,-1225.0,0.00028949,3]
[384957132,1757633534062,-1225.0,0.00028949,3]
[384957133,1757633534071,-1225.0,0.00028949,3]
[384957134,1757633534080,-1225.0,0.00028949,3]
[384957135,1757633534090,-1225.0,0.00028949,3]
[384957136,1757633534099,-152.0,0.00028949,3]
[384957137,1757633534109,-1225.0,0.00028949,3]
[384957138,1757633534119,-1225.0,0.00028949,3]
[384957139,1757633534128,-1225.0,0.00028949,3]
[384957140,1757633534137,-776.49048668,0.00028949,3]
[384957141,1757633534147,-152.0,0.00028949,3]
[384957142,1757633534156,-154.0,0.00028949,3]
[384957143,1757633534166,-154.0,0.00028949,3]
[384957144,1757633534176,-152.0,0.00028949,3]
[384957145,1757633534186,-154.0,0.00028949,3]
[384957146,1757633534196,-154.0,0.00028949,3]
[384957147,1757633534205,-154.0,0.00028949,3]
[384957148,1757633534215,-154.0,0.00028949,3]
[384957149,1757633534224,-277.35679052,0.00028966,2]
[384957150,1757633534234,-7000.0,0.0002898,2]
[384957151,1757633534243,-168.0,0.0002899,2]
[384957152,1757633534252,-132807.56479706,0.00029,2]
[384957153,1757633534261,-873.3,0.00029009,2]
[384957154,1757633534270,-294.0705169,0.00029021,5]
[384957155,1757633534279,-250.0,0.00029021,5]
[384957156,1757633534288,-800.0,0.0002904,7]
[384957157,1757633534298,-500.0,0.0002904,7]
[384957158,1757633534308,-2200.0,0.0002904,7]
[384957159,1757633534317,-300.0,0.0002904,10]
[384957160,1757633534326,-307.39753443,0.0002904,10]
[384957161,1757633534335,-300.0,0.0002904,10]
[384957162,1757633534345,-300.0,0.0002904,10]
[384957163,1757633534356,-300.0,0.0002904,10]
[384957164,1757633534365,-437.0,0.00029041,7]
[384957165,1757633534375,-500.0,0.00029041,7]
[384957166,1757633534387,-3072.0,0.00029041,7]
[384957167,1757633534397,-500.0,0.00029041,7]
[384957168,1757633534408,-516.02713408,0.00029041,7]
[384957169,1757633534421,-500.0,0.00029041,7]
[384957170,1757633534430,-158.254711,0.00029041,7]
[384957171,1757633534439,-424.01,0.00029041,7]
[384957172,1757633534448,-400.0,0.00029041,7]
[384957173,1757633534458,-400.0,0.00029041,7]
[384957174,1757633534469,-644.7,0.00029041,7]
[384957175,1757633534480,-939.76,0.00029041,7]
[384957176,1757633534490,-846.97,0.00029041,7]
[384957177,1757633534499,-400.0,0.00029041,7]
[384957178,1757633534509,-400.0,0.00029041,7]
[384957179,1757633534518,-1152.69,0.00029041,7]
[384957180,1757633534528,-961.48,0.00029041,7]
[384957181,1757633534537,-400.0,0.00029041,7]
[384957182,1757633534546,-831.63,0.00029041,7]
[384957183,1757633534555,-400.0,0.00029041,7]
[384957184,1757633534565,-800.48,0.00029041,7]
[384957185,1757633534574,-400.0,0.00029041,7]
[384957186,1757633534583,-400.0,0.00029041,7]
[384957187,1757633534592,-1171.77,0.00029041,7]
[384957188,1757633534602,-400.0,0.00029041,7]
[384957189,1757633534611,-400.0,0.00029041,7]
[384957190,1757633534621,-400.63,0.00029041,7]
[384957191,1757633534630,-478.53,0.00029041,7]
[384957192,1757633534640,-1120.26,0.00029041,7]
[384957193,1757633534649,-511.9,0.00029041,7]
[384957194,1757633534659,-400.0,0.00029041,7]
[384957195,1757633534668,-2189.62,0.00029041,7]
[384957196,1757633534678,-400.0,0.00029041,7]
[384957197,1757633534687,-400.0,0.00029041,7]
[384957198,1757633534696,-400.0,0.00029041,7]
[384957199,1757633534706,-400.0,0.00029041,7]
[384957200,1757633534716,-1070.24,0.00029041,7]
[384957201,1757633534725,-726.75,0.00029041,7]
[384957202,1757633534735,-400.0,0.00029041,7]
[384957203,1757633534745,-400.0,0.00029041,7]
[384957204,1757633534755,-400.0,0.00029041,7]
[384957205,1757633534765,-531.0,0.00029041,7]
[384957206,1757633534775,-1051.33,0.00029041,7]
[384957207,1757633534784,-400.0,0.00029041,7]
[384957208,1757633534795,-400.0,0.00029041,7]
[384957209,1757633534804,-400.0,0.00029041,7]
[384957210,1757633534814,-400.0,0.00029041,7]
[384957211,1757633534824,-453.86,0.00029041,7]
[384957212,1757633534833,-568.89,0.00029041,7]
[384957213,1757633534842,-593.01,0.00029041,7]
[384957214,1757633534852,-400.0,0.00029041,7]
[384957215,1757633534861,-429.11,0.00029041,7]
[384957216,1757633534871,-400.0,0.00029041,7]
[384957217,1757633534880,-611.58,0.00029041,7]
[384957218,1757633534890,-400.0,0.00029041,7]
[384957219,1757633534899,-565.02,0.00029041,7]
[384957220,1757633534909,-400.0,0.00029041,7]
[384957221,1757633534918,-400.0,0.00029041,7]
[384957222,1757633534928,-400.0,0.00029041,7]
[384957223,1757633534938,-400.0,0.00029041,7]
[384957224,1757633534948,-872.03,0.00029041,7]
[384957225,1757633534958,-808.85,0.00029041,7]
[384957226,1757633534971,-656.37,0.00029041,7]
[384957227,1757633534981,-400.0,0.00029041,7]
[384957228,1757633534991,-864.75,0.00029041,7]
[384957229,1757633535000,-400.0,0.00029041,7]
[384957230,1757633535015,-400.0,0.00029041,7]
[384957231,1757633535025,-701.7,0.00029041,7]
[384957232,1757633535034,-501.39,0.00029041,7]
[384957233,1757633535044,-400.0,0.00029041,7]
[384957234,1757633535054,-400.0,0.00029041,7]
[384957235,1757633535063,-400.0,0.00029041,7]
[384957236,1757633535073,-400.0,0.00029041,7]
[384957237,1757633535083,-960.23,0.00029041,7]
[384957238,1757633535096,-400.0,0.00029041,7]
[384957239,1757633535106,-400.0,0.00029041,7]
[384957240,1757633535115,-437.87,0.00029041,7]
[384957241,1757633535124,-400.0,0.00029041,7]
[384957242,1757633535134,-746.08,0.00029041,7]
[384957243,1757633535143,-553.27,0.00029041,7]
[384957244,1757633535153,-481.31,0.00029041,7]
[384957245,1757633535163,-599.2,0.00029041,7]
[384957246,1757633535172,-923.33,0.00029041,7]
[384957247,1757633535182,-654.29,0.00029041,7]
[384957248,1757633535191,-400.0,0.00029041,7]
[384957249,1757633535201,-400.0,0.00029041,7]
[384957250,1757633535211,-400.0,0.00029041,7]
[384957251,1757633535220,-453.16,0.00029041,7]
[384957252,1757633535230,-400.0,0.00029041,7]
[384957253,1757633535240,-400.0,0.00029041,7]
[384957254,1757633535250,-400.0,0.00029041,7]
[384957255,1757633535260,-400.0,0.00029041,7]
[384957256,1757633535270,-400.0,0.00029041,7]
[384957257,1757633535280,-400.0,0.00029041,7]
[384957258,1757633535290,-612.01,0.00029041,7]
[384957259,1757633535299,-400.0,0.00029041,7]
[384957260,1757633535309,-490.48,0.00029041,7]
[384957261,1757633535320,-785.9,0.00029041,7]
[384957262,1757633535331,-400.0,0.00029041,7]
[384957263,1757633535552,-616.16,0.00029041,7]
[384957264,1757633535562,-468.39986803,0.00029041,7]
[384957265,1757633535574,-440.78,0.00029041,7]
[384957266,1757633535583,-400.0,0.00029041,7]
[384957267,1757633535593,-492.6,0.00029041,7]
[384957268,1757633535603,-400.0,0.00029041,7]
[384957269,1757633535612,-775.58,0.00029041,7]
[384957270,1757633535623,-400.0,0.00029041,7]
[384957271,1757633535632,-1206.98,0.00029041,7]
[384957272,1757633535642,-439.47,0.00029041,7]
[384957273,1757633535654,-509.99,0.00029041,7]
[384957274,1757633535665,-963.12,0.00029041,7]
[384957275,1757633535675,-300.0,0.00029041,7]
[384957276,1757633535685,-638.33,0.00029041,7]
[384957277,1757633535694,-400.0,0.00029041,7]
[384957278,1757633535704,-544.4,0.00029041,7]
[384957279,1757633535714,-541.74,0.00029041,7]
[384957280,1757633535724,-400.0,0.00029041,7]
[384957281,1757633535734,-990.01,0.00029041,7]
[384957282,1757633535744,-524.83080254,0.00029041,7]
[384957283,1757633535754,-400.0,0.00029041,7]
[384957284,1757633535764,-686.43,0.00029041,7]
[384957285,1757633535775,-400.0,0.00029041,7]
[384957286,1757633535786,-400.0,0.00029041,7]
[384957287,1757633535796,-408.24408307,0.00029041,7]
[384957288,1757633535806,-400.0,0.00029041,7]
[384957289,1757633535816,-400.08,0.00029041,7]
[384957290,1757633535826,-613.72,0.00029041,7]
[384957291,1757633535835,-400.0,0.00029041,7]
[384957292,1757633535846,-724.69,0.00029041,7]
[384957293,1757633535856,-622.13,0.00029041,7]
[384957294,1757633535865,-400.0,0.00029041,7]
[384957295,1757633535875,-1069.41,0.00029041,7]
[384957296,1757633535885,-1059.75,0.00029041,7]
[384957297,1757633535895,-506.8,0.00029041,7]
[384957298,1757633535905,-400.0,0.00029041,7]
[384957299,1757633535917,-1004.03,0.00029041,7]
[384957300,1757633535927,-400.0,0.00029041,7]
[384957301,1757633535938,-400.0,0.00029041,7]
[384957302,1757633535951,-753.26,0.00029041,7]
[384957303,1757633535961,-400.0,0.00029041,7]
[384957304,1757633535971,-400.0,0.00029041,7]
[384957305,1757633535980,-400.0,0.00029041,7]
[384957306,1757633535991,-1145.31,0.00029041,7]
[384957307,1757633536001,-400.0,0.00029041,7]
[384957308,1757633536010,-411.17,0.00029041,7]
[384957309,1757633536020,-684.82,0.00029041,7]
[384957310,1757633536030,-488.85,0.00029041,7]
[384957311,1757633536040,-657.64,0.00029041,7]
[384957312,1757633536049,-257.3843188,0.00029041,7]
[384957313,1757633536059,-485.19,0.00029041,7]
[384957314,1757633536069,-400.0,0.00029041,7]
[384957315,1757633536079,-400.0,0.00029041,7]
[384957316,1757633536089,-832.53,0.00029041,7]
[384957317,1757633536099,-400.0,0.00029041,7]
[384957318,1757633536109,-400.0,0.00029041,7]
[384957319,1757633536118,-806.45,0.00029041,7]
[384957320,1757633536128,-1109.35,0.00029041,7]
[384957321,1757633536141,-400.0,0.00029041,7]
[384957322,1757633536151,-1282.14,0.00029041,7]
[384957323,1757633536161,-400.0,0.00029041,7]
[384957324,1757633536173,-1045.02,0.00029041,7]
[384957325,1757633536183,-400.0,0.00029041,7]
[384957326,1757633536192,-750.57,0.00029041,7]
[384957327,1757633536202,-1028.56,0.00029041,7]
[384957328,1757633536211,-1128.76,0.00029041,7]
[384957329,1757633536221,-503.43,0.00029041,7]
[384957330,1757633536231,-1374.45,0.00029041,7]
[384957331,1757633536240,-461.12681919,0.00029041,7]
[384957332,1757633536251,-452.16,0.00029041,7]
[384957333,1757633536261,-1090.41,0.00029041,7]
[384957334,1757633536271,-424.11,0.00029041,7]
[384957335,1757633536281,-632.34,0.00029041,7]
[384957336,1757633536290,-494.59,0.00029041,7]
[384957337,1757633536300,-400.0,0.00029041,7]